bitfinex/quotes_SOLUSD_20250424
["timestamp","ask_amount","ask_price","bid_price","bid_amount"]
[1745484596115,0.063,145.59,145.58,53.44040552]
[1745484597020,0.063,145.65,145.58,70.61309407]
[1745484597321,0.063,145.65,145.64,23.28566505]
[1745484597825,0.063,145.65,145.61,6.86741632]
[1745484597998,0.063,145.65,145.64,23.28566505]
[1745484599518,0.063,145.65,145.64,30.15191058]
[1745484599718,0.063,145.65,145.64,23.28566505]
[1745484599904,0.063,145.65,145.64,30.15191058]
[1745484600416,0.063,145.65,145.64,23.28566505]
[1745484600613,0.063,145.68,145.64,46.5713301]
[1745484600920,0.063,145.68,145.67,23.28566505]
[1745484601398,0.063,145.68,145.67,46.5713301]
[1745484602932,0.063,145.74,145.67,70.59824023]
[1745484603137,0.063,145.74,145.73,23.28566505]
[1745484604517,0.063,145.74,145.71,23.28566505]
[1745484604819,0.063,145.74,145.72,23.28566505]
[1745484605117,0.063,145.74,145.73,23.28566505]
[1745484605318,0.063,145.74,145.68,6.86436024]
[1745484605617,0.063,145.74,145.73,23.28566505]
[1745484606015,0.063,145.74,145.68,6.86424695]
[1745484606205,41.99831391,145.74,145.66,6.865123]
[1745484606405,18.64964886,145.72,145.69,23.28566505]
[1745484606724,18.64964886,145.7,145.68,23.28566505]
[1745484607024,20.36561094,145.72,145.68,23.28566505]
[1745484607717,20.36561094,145.72,145.69,23.28566505]
[1745484608902,1.71596208,145.72,145.7,23.28566505]
[1745484609114,18.64964886,145.72,145.71,23.28566505]
[1745484609632,20.42833824,145.74,145.71,23.28566505]
[1745484609811,18.71264886,145.74,145.73,23.28566505]
[1745484610209,0.063,145.74,145.73,23.28566505]
[1745484612931,0.063,145.74,145.72,23.28566505]
[1745484613233,18.71264886,145.74,145.72,23.28566505]
[1745484613413,18.71264886,145.74,145.73,23.28566505]
[1745484613609,0.063,145.74,145.73,46.5713301]
[1745484613921,0.063,145.74,145.73,53.43333517]
[1745484614734,0.063,145.74,145.73,30.14767012]
[1745484615030,0.063,145.74,145.73,23.28566505]
[1745484615236,0.063,145.74,145.73,30.14767012]
[1745484616215,0.063,145.74,145.73,23.28566505]
[1745484616524,0.063,145.74,145.68,6.86436024]
[1745484617047,0.063,145.74,145.72,23.28566505]
[1745484618548,0.063,145.74,145.73,23.28566505]
[1745484619641,0.063,145.74,145.7,6.86312656]
[1745484619944,0.063,145.74,145.73,23.28566505]
[1745484620351,0.063,145.74,145.71,23.28566505]
[1745484621646,18.64964886,145.73,145.7,23.28566505]
[1745484621930,20.36536978,145.73,145.7,23.28566505]
[1745484622838,1.77871044,145.74,145.72,23.28566505]
[1745484623017,0.063,145.74,145.73,23.28566505]
[1745484623213,0.063,145.74,145.71,23.28566505]
[1745484623521,43.71395593,145.74,145.7,23.28566505]
[1745484624547,20.42829088,145.74,145.7,23.28566505]
[1745484624754,43.71395593,145.74,145.7,23.28566505]
[1745484624953,18.64964886,145.72,145.65,6.86577411]
[1745484625144,20.36549525,145.72,145.68,23.28566505]
[1745484625345,41.93531391,145.7,145.65,23.28566505]
[1745484625557,1.71621009,145.69,145.63,6.86653872]
[1745484625735,1.71621009,145.69,145.66,23.28566505]
[1745484625936,1.71616977,145.72,145.68,23.28566505]
[1745484626162,1.71616977,145.72,145.63,6.86653872]
[1745484626163,18.64964886,145.71,145.69,23.28566505]
[1745484626661,18.64964886,145.72,145.7,23.28566505]
[1745484627052,0.063,145.74,145.71,23.28566505]
[1745484627257,0.063,145.74,145.73,23.28566505]
[1745484628336,18.71264886,145.74,145.71,23.28566505]
[1745484628547,1.7157421,145.73,145.7,23.28566505]
[1745484628758,1.7157421,145.73,145.71,23.28566505]
[1745484628952,18.71264886,145.74,145.67,6.86483146]
[1745484628953,20.42837191,145.74,145.67,6.86483146]
[1745484629259,20.42837191,145.74,145.71,23.28566505]
[1745484629850,1.71568101,145.73,145.7,23.28566505]
[1745484630436,41.93531391,145.72,145.64,26.0]
[1745484630741,1.7159523,145.71,145.67,23.28566505]
[1745484631138,25.00161735,145.71,145.66,23.28566505]
[1745484631333,25.00161735,145.71,145.65,6.86572543]
[1745484631537,25.00161735,145.71,145.66,23.28566505]
[1745484631746,1.7159523,145.71,145.68,23.28566505]
[1745484631942,18.64964886,145.72,145.7,23.28566505]
[1745484632826,18.64964886,145.72,145.69,23.28566505]
[1745484633231,18.64964886,145.72,145.68,23.28566505]
[1745484633946,18.64964886,145.72,145.69,23.28566505]
[1745484634142,18.64964886,145.73,145.69,23.28566505]
[1745484634346,20.36542837,145.73,145.69,23.28566505]
[1745484634844,41.93531391,145.7,145.65,23.28566505]
[1745484635173,1.71611436,145.69,145.65,23.28566505]
[1745484635468,25.00177941,145.69,145.65,23.28566505]
[1745484635649,1.71611436,145.69,145.62,6.89698137]
[1745484635964,1.71611436,145.69,145.65,23.28566505]
[1745484636135,1.71611436,145.69,145.62,6.89698137]
[1745484636336,1.71611436,145.69,145.65,23.28566505]
[1745484637175,41.93531391,145.66,145.62,0.03]
[1745484637473,18.64964886,145.64,145.62,0.03]
[1745484637652,18.64964886,145.63,145.62,0.03]
[1745484637962,18.64964886,145.65,145.62,23.31566505]
[1745484638462,18.64964886,145.65,145.62,0.03]
[1745484638659,43.65195972,145.65,145.62,0.03]
[1745484639386,23.28566505,145.64,145.62,0.03]
[1745484639538,1.71683428,145.63,145.62,0.03]
[1745484639745,1.71686351,145.64,145.62,0.03]
[1745484640046,23.28566505,145.64,145.62,0.03]
[1745484640383,43.65216101,145.63,145.62,0.03]
[1745484640552,18.64964886,145.65,145.62,0.03]
[1745484640750,1.7167297,145.64,145.62,0.03]
[1745484640952,25.00239475,145.64,145.62,0.03]
[1745484641771,18.64964886,145.64,145.62,0.03]
[1745484642369,18.64964886,145.69,145.63,23.28566505]
[1745484642546,1.71614908,145.72,145.67,23.28566505]
[1745484642869,30.0,145.68,145.66,23.28566505]
[1745484644056,25.00176475,145.7,145.65,23.28566505]
[1745484644253,25.00176475,145.7,145.66,23.28566505]
[1745484645073,25.00176475,145.7,145.65,23.28566505]
[1745484645270,18.64964886,145.69,145.63,6.86638759]
[1745484645476,41.93531391,145.69,145.62,6.89707444]
[1745484645695,18.64964886,145.67,145.64,23.28566505]
[1745484645850,18.64964886,145.67,145.65,23.28566505]
[1745484646053,18.64964886,145.7,145.66,23.28566505]
[1745484646547,18.64964886,145.71,145.66,23.28566505]
[1745484646847,41.93531391,145.71,145.66,23.28566505]
[1745484647168,41.93531391,145.71,145.64,6.86617506]
[1745484647169,18.64964886,145.71,145.67,23.28566505]
[1745484647368,18.64964886,145.73,145.69,23.28566505]
[1745484647877,41.93531391,145.73,145.69,23.28566505]
[1745484648377,0.063,145.74,145.71,23.28566505]
[1745484648677,0.063,145.74,145.73,23.28566505]
[1745484649279,0.063,145.74,145.73,30.14767012]
[1745484649788,0.063,145.74,145.73,56.14767012]
[1745484651592,0.063,145.74,145.73,32.86200507]
[1745484651774,0.063,145.74,145.73,56.14767012]
[1745484652674,0.063,145.74,145.73,53.43333517]
[1745484652876,0.063,145.78,145.76,26.0]
[1745484653078,0.063,145.78,145.77,49.28566505]
[1745484653384,0.063,145.78,145.77,56.14578716]
[1745484653786,0.063,145.78,145.77,57.65118716]
[1745484654803,1e-08,145.78,145.77,57.65118716]
[1745484655401,0.063,145.8,145.77,98.08715748]
[1745484655570,0.063,145.8,145.79,46.5713301]
[1745484655769,0.063,145.8,145.79,23.28566505]
[1745484656587,1e-08,145.8,145.79,46.5713301]
[1745484656979,1e-08,145.8,145.79,23.28566505]
[1745484657384,1e-08,145.8,145.79,30.14484606]
[1745484657783,1e-08,145.8,145.79,56.14484606]
[1745484659394,1e-08,145.8,145.79,32.85918101]
[1745484659695,1e-08,145.8,145.79,56.14484606]
[1745484660272,1e-08,145.8,145.79,32.85918101]
[1745484660593,1e-08,145.8,145.79,56.14484606]
[1745484661670,1e-08,145.8,145.79,53.43051111]
[1745484661870,0.063,145.87,145.83,1.0]
[1745484662067,0.063,145.87,145.86,49.28566505]
[1745484663099,0.063,145.87,145.86,72.5713301]
[1745484663478,0.063,145.87,145.86,79.4272193]
[1745484663679,0.063,145.87,145.86,56.14155425]
[1745484664084,0.063,145.87,145.86,32.8558892]
[1745484664289,0.063,145.87,145.86,56.14155425]
[1745484664495,0.063,145.87,145.86,30.14155425]
[1745484664688,23.34866505,145.87,145.82,6.85776985]
[1745484664891,23.34866505,145.87,145.82,30.1434349]
[1745484665083,18.64964886,145.84,145.77,25.9387]
[1745484665288,23.28566505,145.83,145.78,23.28566505]
[1745484665500,18.64964886,145.81,145.74,18.14]
[1745484665675,23.28566505,145.79,145.73,6.86200507]
[1745484666105,18.64964886,145.77,145.73,30.14767012]
[1745484666396,41.93531391,145.77,145.73,30.14767012]
[1745484666802,41.93531391,145.75,145.68,6.86436024]
[1745484667105,41.93531391,145.76,145.72,23.28566505]
[1745484667284,41.93531391,145.76,145.68,24.02526084]
[1745484667611,26.0,145.78,145.69,30.14921217]
[1745484667612,23.28566505,145.74,145.69,30.14921217]
[1745484667801,18.64964886,145.74,145.69,30.14921217]
[1745484668106,41.93531391,145.74,145.69,30.14921217]
[1745484668282,18.64964886,145.76,145.69,30.14921217]
[1745484668606,23.28566505,145.74,145.69,30.14921217]
[1745484668800,1.71550417,145.8,145.71,23.28566505]
[1745484669012,18.64964886,145.79,145.74,23.28566505]
[1745484669305,23.28566505,145.78,145.73,23.28566505]
[1745484669611,23.28566505,145.74,145.67,0.063]
[1745484669812,23.28566505,145.74,145.69,23.28566505]
[1745484670009,18.64964886,145.75,145.71,23.28566505]
[1745484670218,23.28566505,145.77,145.72,23.28566505]
[1745484670389,18.64964886,145.76,145.72,23.28566505]
[1745484670706,18.64964886,145.75,145.71,23.28566505]
[1745484670921,18.64964886,145.76,145.73,23.28566505]
[1745484671106,41.93531391,145.76,145.72,23.28566505]
[1745484671305,18.64964886,145.76,145.72,23.28566505]
[1745484671487,23.28566505,145.78,145.73,30.14767012]
[1745484671825,18.64964886,145.77,145.73,30.14767012]
[1745484672000,23.28566505,145.79,145.74,23.28566505]
[1745484672314,18.64964886,145.78,145.75,23.28566505]
[1745484672617,18.64964886,145.79,145.75,23.28566505]
[1745484672790,23.28566505,145.78,145.73,30.14767012]
[1745484672991,41.93531391,145.79,145.74,23.28566505]
[1745484673216,6.4001,145.81,145.73,24.01701776]
[1745484673421,6.4001,145.81,145.77,23.28566505]
[1745484673911,6.4001,145.81,145.76,23.28566505]
[1745484673912,41.93531391,145.8,145.76,23.28566505]
[1745484674118,41.93531391,145.8,145.75,30.14672851]
[1745484674119,43.65012017,145.8,145.75,30.14672851]
[1745484674425,1.71489917,145.81,145.76,49.28566505]
[1745484674723,0.063,145.87,145.8,23.28566505]
[1745484674724,1.77780302,145.87,145.8,23.28566505]
[1745484674914,18.64964886,145.86,145.82,23.28566505]
[1745484675120,0.063,145.87,145.85,23.28566505]
[1745484675331,18.71264886,145.87,145.84,23.28566505]
[1745484675530,18.71264886,145.87,145.84,30.14225709]
[1745484676532,0.063,145.87,145.86,23.28566505]
[1745484677525,0.063,145.87,145.85,23.28566505]
[1745484678322,0.063,145.87,145.86,23.28566505]
[1745484679814,0.063,145.87,145.86,30.14155425]
[1745484682407,0.063,145.87,145.86,6.8558892]
[1745484682625,0.063,145.87,145.86,30.14155425]
[1745484682831,0.063,145.89,145.88,26.0]
[1745484683017,0.063,145.89,145.88,49.28566505]
[1745484683206,0.063,145.89,145.88,23.28566505]
[1745484683809,0.063,145.89,145.88,30.14061432]
[1745484684842,0.063,145.89,145.88,53.42627937]
[1745484685137,0.063,145.9,145.89,26.0]
[1745484685326,0.063,145.9,145.89,23.28566505]
[1745484685732,0.063,145.9,145.89,30.14014445]
[1745484687143,0.063,145.9,145.89,6.8544794]
[1745484687642,0.063,145.9,145.89,30.14014445]
[1745484689351,0.063,145.9,145.87,6.8554192]
[1745484689530,0.063,145.9,145.89,23.28566505]
[1745484689919,0.063,145.9,145.89,49.28566505]
[1745484690138,1e-08,145.92,145.91,26.0]
[1745484690444,1e-08,145.92,145.91,23.28566505]
[1745484690630,1e-08,145.92,145.91,49.28566505]
[1745484690829,1e-08,145.92,145.91,56.1392049]
[1745484691219,1e-08,145.92,145.91,32.85353985]
[1745484691448,1e-08,145.92,145.91,56.1392049]
[1745484692050,1e-08,145.92,145.91,32.85353985]
[1745484692339,1e-08,145.92,145.89,23.28566505]
[1745484692542,1e-08,145.92,145.9,30.13947473]
[1745484692752,1e-08,145.92,145.91,30.1392049]
[1745484694647,1e-08,145.92,145.91,56.1392049]
[1745484696252,1e-08,145.92,145.91,74.2592049]
[1745484696750,1e-08,145.93,145.91,74.2592049]
[1745484697050,0.03,145.96,145.95,26.0]
[1745484697225,0.03,145.96,145.95,72.5713301]
[1745484698234,0.03,145.96,145.95,79.42299162]
[1745484698637,0.063,145.98,145.97,23.28566505]
[1745484699546,0.063,145.98,145.95,49.98081533]
[1745484699771,0.063,145.98,145.97,23.28566505]
[1745484700168,0.063,145.98,145.97,30.1363878]
[1745484703771,0.03,146.02,145.97,73.26319467]
[1745484703949,0.03,146.02,146.01,46.5713301]
[1745484704151,0.03,146.02,146.01,23.28566505]
[1745484704453,0.03,146.02,146.01,30.13451101]
[1745484707490,0.03,146.02,146.01,6.84884596]
[1745484707701,0.03,146.02,146.01,30.13451101]
[1745484708187,0.03,146.02,146.01,6.84884596]
[1745484708482,0.03,146.02,146.01,23.28566505]
[1745484708785,0.03,146.02,146.01,30.13451101]
[1745484712288,0.03,146.02,146.01,6.84884596]
[1745484712465,0.03,146.02,146.01,30.13451101]
[1745484715989,1e-08,146.02,146.01,53.42017606]
[1745484716692,23.28566506,146.02,145.96,6.8511921]
[1745484716873,23.28566506,146.02,145.98,23.28566505]
[1745484716874,6.1221,146.01,145.98,23.28566505]
[1745484717075,1e-08,146.02,146.0,23.28566505]
[1745484717290,1e-08,146.02,146.01,23.28566505]
[1745484718290,1e-08,146.02,146.01,30.13451101]
[1745484719909,1e-08,146.02,146.01,53.42017606]
[1745484720279,1e-08,146.02,146.01,30.13451101]
[1745484721481,1e-08,146.02,146.01,53.42017606]
[1745484721777,1e-08,146.02,146.01,6.84884596]
[1745484721995,1e-08,146.02,146.01,30.13451101]
[1745484722502,1e-08,146.02,146.01,53.42017606]
[1745484722987,1e-08,146.02,146.01,74.25451101]
[1745484723187,1e-08,146.02,146.01,56.13451101]
[1745484723373,1e-08,146.02,146.01,32.84884596]
[1745484723576,1e-08,146.02,146.01,56.13451101]
[1745484727328,1e-08,146.02,146.01,53.42017606]
[1745484727628,0.03,146.04,146.03,26.0]
[1745484727832,0.03,146.04,146.03,49.28566505]
[1745484728420,0.03,146.04,146.03,67.38566505]
[1745484729324,0.03,146.04,146.01,6.84884596]
[1745484729534,0.03,146.04,146.01,23.28566505]
[1745484729698,0.03,146.04,146.02,23.28566505]
[1745484732201,0.03,146.04,146.02,30.13392293]
[1745484733327,0.03,146.04,146.03,14.44237153]
[1745484733919,0.03,146.04,146.03,21.29027949]
[1745484735340,0.03,146.04,146.02,40.44237153]
[1745484736241,0.03,146.04,146.02,47.29045645]
[1745484736533,14.47237153,146.04,146.0,6.84931506]
[1745484736948,0.03,146.04,146.0,21.29168659]
[1745484738231,14.47237153,146.04,146.0,6.84931506]
[1745484738631,14.44237153,146.03,145.98,14.44237153]
[1745484738935,20.75927153,146.04,145.99,14.44237153]
[1745484739519,14.44237153,146.03,145.98,21.29247457]
[1745484739718,14.44237153,146.02,145.98,6.85010304]
[1745484740551,33.09202039,146.03,145.98,21.29247457]
[1745484741443,20.75927153,146.04,145.99,14.44237153]
[1745484741746,6.3169,146.04,146.01,14.44237153]
[1745484742340,0.03,146.04,146.01,14.44237153]
[1745484742727,0.03,146.04,146.02,14.44237153]
[1745484743125,0.03,146.04,146.03,14.44237153]
[1745484744744,0.03,146.04,146.03,47.29027949]
[1745484745632,0.063,146.07,146.03,64.4100494]
[1745484745828,0.063,146.07,146.06,14.44237153]
[1745484746844,0.063,146.07,146.06,21.28887296]
[1745484747031,10.72698597,146.08,146.06,47.28887296]
[1745484747234,10.72698597,146.08,146.07,14.44237153]
[1745484748746,10.72698597,146.08,146.07,21.28840425]
[1745484750059,21.42397194,146.1,146.09,26.0]
[1745484750357,1e-08,146.12,146.11,26.0]
[1745484750541,0.03,146.13,146.11,40.44237153]
[1745484750746,0.03,146.13,146.12,47.28606164]
[1745484751551,0.03,146.14,146.12,47.28606164]
[1745484751754,0.03,146.14,146.13,14.44237153]
[1745484752447,64.18191582,146.16,146.15,26.0]
[1745484752649,64.18191582,146.16,146.15,58.54237153]
[1745484753035,0.03,146.17,146.15,98.47667724]
[1745484753235,85.60588776,146.19,146.16,28.88474306]
[1745484753465,85.60588776,146.19,146.17,40.44237153]
[1745484753648,85.60588776,146.19,146.17,14.44237153]
[1745484753834,85.60588776,146.19,146.18,40.44237153]
[1745484754638,85.60588776,146.19,146.18,58.54237153]
[1745484755074,85.60588776,146.19,146.18,79.54823384]
[1745484755351,85.60588776,146.19,146.18,88.15683549]
[1745484756554,85.60588776,146.19,146.18,40.16498121]
[1745484756763,85.60588776,146.19,146.18,63.21595439]
[1745484757078,85.60588776,146.19,146.18,14.16498121]
[1745484757438,85.60588776,146.19,146.18,21.00586231]
[1745484757667,85.60588776,146.19,146.18,14.16498121]
[1745484758051,85.60588776,146.19,146.18,44.05683549]
[1745484761074,85.60588776,146.19,146.18,70.05683549]
[1745484763077,85.60588776,146.19,146.18,88.83649292]
[1745484765887,85.60588776,146.19,146.18,32.94463864]
[1745484766082,85.60588776,146.19,146.18,39.78551974]
[1745484766284,85.60588776,146.19,146.18,62.83649292]
[1745484768195,9.85735394,146.19,146.18,142.65003701]
[1745484770679,9.85735394,146.19,146.18,168.65003701]
[1745484771175,9.85735394,146.19,146.18,142.65003701]
[1745484771382,9.85735394,146.19,146.18,168.65003701]
[1745484772296,9.85735394,146.19,146.18,145.59906383]
[1745484772486,9.85735394,146.19,146.18,112.75818273]
[1745484772992,32.90832712,146.19,146.18,112.75818273]
[1745484773194,9.85735394,146.19,146.18,112.75818273]
[1745484773762,9.85735394,146.19,146.18,142.65003701]
[1745484774397,9.85735394,146.19,146.18,112.75818273]
[1745484775273,9.85735394,146.19,146.18,119.59906383]
[1745484777604,9.85735394,146.19,146.18,112.75818273]
[1745484779292,49.30230755,146.19,146.18,112.75818273]
[1745484780378,75.30230755,146.19,146.18,104.42498273]
[1745484780598,18.64964886,146.18,146.12,51.77357618]
[1745484780803,14.41260475,146.13,146.12,51.77357618]
[1745484781005,14.41260475,146.13,146.09,6.84489605]
[1745484781177,27.71088609,146.15,146.07,6.90867298]
[1745484781384,14.41260475,146.11,146.07,6.90867298]
[1745484781616,14.41260475,146.09,146.07,6.90867298]
[1745484781801,14.41260475,146.16,146.07,6.90867298]
[1745484782100,1.61387329,146.18,146.08,26.0]
[1745484782306,14.41260475,146.12,146.08,26.0]
[1745484782509,14.41260475,146.11,146.07,6.90867298]
[1745484782683,14.41260475,146.1,146.07,6.90867298]
[1745484783097,14.41260475,146.08,146.07,0.063]
[1745484785216,14.41260475,146.09,146.07,0.063]
[1745484785416,1.5889,146.11,146.07,0.063]
[1745484785708,14.41260475,146.09,146.07,0.063]
[1745484786911,14.41260475,146.1,146.07,0.063]
[1745484787120,6.5236,146.18,146.09,14.41260475]
[1745484787293,14.41260475,146.13,146.08,21.25808377]
[1745484787495,14.41260475,146.12,146.07,0.063]
[1745484787821,14.41260475,146.13,146.07,6.90895712]
[1745484787994,18.64964886,146.15,146.07,21.32156187]
[1745484788193,14.41260475,146.12,146.07,21.32156187]
[1745484788589,18.64964886,146.15,146.07,21.32156187]
[1745484788924,14.41260475,146.13,146.09,14.41260475]
[1745484789211,14.41260475,146.13,146.09,21.25723748]
[1745484789916,18.64964886,146.16,146.09,6.84463273]
[1745484790100,14.41260475,146.13,146.09,6.84463273]
[1745484790294,14.41260475,146.15,146.1,14.41260475]
[1745484790619,14.41260475,146.16,146.11,14.41260475]
[1745484791310,14.41260475,146.17,146.13,6.84322178]
[1745484791504,14.41260475,146.16,146.1,6.84462696]
[1745484791692,14.41260475,146.14,146.1,6.84462696]
[1745484792299,14.41260475,146.12,146.1,6.84462696]
[1745484792518,14.41260475,146.12,146.08,6.84556407]
[1745484793110,14.41260475,146.12,146.08,21.25816882]
[1745484793497,14.41260475,146.13,146.08,21.25816882]
[1745484793810,14.41260475,146.12,146.08,21.25816882]
[1745484794191,14.41260475,146.12,146.08,6.84556407]
[1745484794392,18.64964886,146.15,146.08,21.25816882]
[1745484794601,14.41260475,146.13,146.08,21.25816882]
[1745484795309,14.41260475,146.13,146.08,31.8614713]
[1745484795507,14.41260475,146.13,146.09,14.41260475]
[1745484795987,18.64964886,146.16,146.09,14.41260475]
[1745484796193,14.41260475,146.13,146.09,21.25746566]
[1745484796593,14.41260475,146.13,146.09,6.84486091]
[1745484797116,14.41260475,146.12,146.08,31.8612918]
[1745484797319,14.41260475,146.13,146.08,31.8612918]
[1745484797799,14.41260475,146.12,146.08,17.44868705]
[1745484798319,26.0,146.15,146.08,21.25798932]
[1745484798522,14.41260475,146.13,146.08,21.25798932]
[1745484798817,26.0,146.15,146.09,14.41260475]
[1745484799116,14.41260475,146.14,146.09,14.41260475]
[1745484799707,14.41260475,146.14,146.08,6.84538457]
[1745484799708,14.41260475,146.13,146.08,21.25798932]
[1745484801624,26.0,146.15,146.07,6.90887064]
[1745484801625,14.41260475,146.11,146.07,6.90887064]
[1745484801828,14.41260475,146.12,146.07,21.32147539]
[1745484802324,14.41260475,146.14,146.09,14.41260475]
[1745484802525,14.41260475,146.13,146.08,14.41260475]
[1745484802896,14.41260475,146.12,146.07,21.32147539]
[1745484803316,14.41260475,146.13,146.08,14.41260475]
[1745484803519,14.41260475,146.11,146.07,0.063]
[1745484805235,14.41260475,146.09,146.07,0.063]
[1745484805537,14.41260475,146.08,146.07,0.063]
[1745484805903,14.41260475,146.09,146.07,0.063]
[1745484806104,18.64964886,146.11,146.07,0.063]
[1745484806514,14.41260475,146.1,146.07,0.063]
[1745484807338,14.41260475,146.09,146.07,0.063]
[1745484807502,14.41260475,146.08,146.07,0.063]
[1745484807702,14.41260475,146.09,146.07,0.063]
[1745484810538,14.41260475,146.11,146.07,0.063]
[1745484810696,14.41260475,146.12,146.07,14.47560475]
[1745484810897,14.41260475,146.1,146.07,0.063]
[1745484811419,14.39139475,146.09,146.07,0.063]
[1745484812836,14.41260475,146.1,146.07,0.063]
[1745484813014,14.41260475,146.11,146.07,0.063]
[1745484814034,18.64964886,146.15,146.08,14.41260475]
[1745484814335,14.41260475,146.13,146.08,14.41260475]
[1745484814514,14.41260475,146.12,146.07,14.47560475]
[1745484814913,14.41260475,146.11,146.07,0.063]
[1745484815136,14.41260475,146.11,146.07,14.47560475]
[1745484815432,14.41260475,146.12,146.07,14.47560475]
[1745484815842,14.41260475,146.12,146.07,21.32138878]
[1745484816639,14.41260475,146.12,146.08,14.41260475]
[1745484816821,14.41260475,146.14,146.09,14.41260475]
[1745484817010,14.41260475,146.13,146.08,14.41260475]
[1745484818035,14.41260475,146.13,146.08,21.25800518]
[1745484818335,14.41260475,146.13,146.08,14.41260475]
[1745484818738,14.41260475,146.12,146.08,14.41260475]
[1745484819123,14.41260475,146.12,146.07,21.32151413]
[1745484819324,9.23741722,146.12,146.07,16.1463266]
[1745484819918,9.23741722,146.12,146.08,9.23741722]
[1745484820128,18.64964886,146.15,146.08,9.23741722]
[1745484820421,9.23741722,146.13,146.08,9.23741722]
[1745484820629,9.23741722,146.13,146.09,9.23741722]
[1745484820827,9.23741722,146.13,146.07,6.90890938]
[1745484821041,9.23741722,146.12,146.07,16.1463266]
[1745484822545,18.64964886,146.15,146.07,0.063]
[1745484822546,9.23741722,146.1,146.07,0.063]
[1745484822752,26.0,146.14,146.07,0.063]
[1745484822753,9.23741722,146.08,146.07,0.063]
[1745484823351,9.23741722,146.09,146.07,0.063]
[1745484823549,18.64964886,146.12,146.07,0.063]
[1745484823720,9.23741722,146.09,146.07,0.063]
[1745484823918,9.23741722,146.1,146.07,0.063]
[1745484824632,9.23741722,146.09,146.07,0.063]
[1745484825519,9.23741722,146.08,146.07,0.063]
[1745484825724,53.88706608,146.08,146.07,0.063]
[1745484826063,58.94730021,146.08,146.07,0.063]
[1745484826645,44.64964886,146.04,146.03,0.063]
[1745484826950,58.94730021,146.04,146.03,0.063]
[1745484827541,64.16598418,146.04,146.03,0.063]
[1745484829723,59.10575005,146.04,146.03,0.063]
[1745484830248,26.0,146.06,146.03,0.063]
[1745484830441,14.45610119,146.04,146.03,0.063]
[1745484830843,14.45610119,146.05,146.03,0.063]
[1745484831165,18.02,146.07,146.03,0.063]
[1745484831441,14.45610119,146.06,146.03,0.063]
[1745484832942,14.45610119,146.05,146.03,0.063]
[1745484833523,14.45610119,146.06,146.03,0.063]
[1745484834126,14.45610119,146.08,146.04,14.45610119]
[1745484834532,14.45610119,146.08,146.03,14.51910119]
[1745484835373,14.45610119,146.08,146.03,21.3667977]
[1745484835537,14.45610119,146.08,146.03,14.51910119]
[1745484836346,33.10575005,146.09,146.03,0.063]
[1745484836546,14.45610119,146.06,146.03,0.063]
[1745484836751,18.64964886,146.09,146.03,0.063]
[1745484836954,14.45610119,146.08,146.03,14.51910119]
[1745484837265,14.45610119,146.08,146.04,14.45610119]
[1745484838257,14.45610119,146.07,146.03,14.51910119]
[1745484838649,14.45610119,146.08,146.03,14.51910119]
[1745484838849,14.45610119,146.08,146.04,14.45610119]
[1745484839465,14.45610119,146.08,146.03,14.51910119]
[1745484839870,18.64964886,146.09,146.03,14.51910119]
[1745484840045,14.45610119,146.08,146.03,14.51910119]
[1745484840246,18.04,146.12,146.05,14.45610119]
[1745484840446,18.64964886,146.11,146.07,14.45610119]
[1745484840662,14.45610119,146.1,146.03,6.91077812]
[1745484840841,14.45610119,146.1,146.05,14.45610119]
[1745484841046,14.45610119,146.1,146.06,14.45610119]
[1745484842644,14.45610119,146.09,146.05,14.45610119]
[1745484842842,14.45610119,146.09,146.04,14.45610119]
[1745484843547,14.45610119,146.08,146.04,14.45610119]
[1745484844364,14.45610119,146.09,146.04,14.45610119]
[1745484844563,26.0,146.11,146.05,14.45610119]
[1745484844764,26.0,146.11,146.06,14.45610119]
[1745484844977,40.45610119,146.11,146.06,14.45610119]
[1745484846266,26.0,146.11,146.07,14.45610119]
[1745484847071,14.45610119,146.1,146.06,14.45610119]
[1745484847375,14.45610119,146.1,146.05,14.45610119]
[1745484847576,26.0,146.11,146.06,14.45610119]
[1745484847766,40.45610119,146.11,146.06,14.45610119]
[1745484847966,14.45610119,146.1,146.05,14.45610119]
[1745484849175,26.0,146.11,146.05,14.45610119]
[1745484849491,40.45610119,146.11,146.06,14.45610119]
[1745484850394,26.0,146.11,146.08,14.45610119]
[1745484850965,19.7182,146.16,146.09,14.45610119]